fUSD/lending_fUSD_20251123
["ID","MTS","AMOUNT","RATE_DAILY","PERIOD"]
[394772249,1763933454333,-500.0,0.00040273,8]
[394772250,1763933454343,-500.0,0.00040273,8]
[394772251,1763933454352,-500.0,0.00040273,8]
[394772252,1763933454362,-500.0,0.00040273,8]
[394772253,1763933454371,-500.0,0.00040273,8]
[394772254,1763933454381,-500.0,0.00040273,8]
[394772255,1763933454390,-500.0,0.00040273,8]
[394772256,1763933454400,-415.96104211,0.00040273,8]
[394772257,1763933454410,-500.0,0.00040273,8]
[394772258,1763933454419,-500.0,0.00040273,8]
[394772259,1763933454429,-500.0,0.00040273,8]
[394772260,1763933454439,-2515.4,0.00040273,8]
[394772261,1763933454449,-500.0,0.00040273,8]
[394772262,1763933454459,-560.52668661,0.00040273,8]
[394772263,1763933454468,-199.65242565,0.00040273,8]
[394772264,1763933454478,-500.0,0.00040273,8]
[394772265,1763933454488,-500.0,0.00040273,8]
[394772266,1763933454497,-500.0,0.00040273,8]
[394772267,1763933454507,-500.0,0.00040273,8]
[394772268,1763933454516,-500.0,0.00040273,8]
[394772269,1763933454526,-500.0,0.00040273,8]
[394772270,1763933454536,-500.0,0.00040273,2]
[394772271,1763933454546,-524.73,0.00040273,8]
[394772272,1763933454555,-500.0,0.00040273,8]
[394772273,1763933454565,-500.0,0.00040273,8]
[394772274,1763933454574,-500.0,0.00040273,8]
[394772275,1763933454584,-551.61,0.00040273,8]
[394772276,1763933454594,-500.0,0.00040273,8]
[394772277,1763933454603,-500.0,0.00040273,8]
[394772278,1763933454614,-941.13,0.00040273,8]
[394772279,1763933454624,-500.0,0.00040273,8]
[394772280,1763933454634,-500.0,0.00040273,8]
[394772281,1763933454644,-761.3,0.00040273,8]
[394772282,1763933454653,-500.0,0.00040273,8]
[394772283,1763933454663,-500.0,0.00040273,8]
[394772284,1763933454672,-439.75198388,0.00040273,8]
[394772285,1763933454682,-500.0,0.00040273,8]
[394772286,1763933454692,-500.0,0.00040273,8]
[394772287,1763933454702,-500.0,0.00040273,8]
[394772288,1763933454712,-500.0,0.00040273,8]
[394772289,1763933454723,-801.51,0.00040273,8]
[394772290,1763933454732,-500.0,0.00040273,8]
[394772291,1763933454742,-500.0,0.00040273,8]
[394772292,1763933454752,-500.0,0.00040273,8]
[394772293,1763933454763,-693.68,0.00040273,8]
[394772294,1763933454772,-500.0,0.00040273,8]
[394772295,1763933454782,-500.0,0.00040273,8]
[394772296,1763933454792,-500.0,0.00040273,8]
[394772297,1763933454802,-500.0,0.00040273,8]
[394772298,1763933454812,-500.0,0.00040273,8]
[394772299,1763933454822,-500.0,0.00040273,8]
[394772300,1763933454833,-4298.56892222,0.0004029,15]
[394772301,1763933454843,-150.0,0.00040292,2]
[394772302,1763933454853,-300.0,0.00040292,2]
[394772303,1763933454867,-150.0,0.00040292,2]
[394772304,1763933454877,-300.0,0.00040292,2]
[394772305,1763933454887,-150.0,0.00040292,2]
[394772306,1763933454896,-154.58,0.00040292,2]
[394772307,1763933454907,-300.0,0.00040292,2]
[394772308,1763933454918,-300.0,0.00040292,2]
[394772309,1763933454927,-150.0,0.00040292,2]
[394772310,1763933454937,-328.28,0.00040292,2]
[394772311,1763933454947,-654.38098081,0.00040312,15]
[394772312,1763933454957,-162.9711702,0.00040376,15]
[394772313,1763933454967,-1550.0,0.000404,7]
[394772314,1763933454977,-1000.0,0.00040439,3]
[394772315,1763933454987,-200.0,0.00040447,20]
[394772316,1763933454997,-600.0,0.00040448,30]
[394772317,1763933455007,-217.83804072,0.00040455,2]
[394772318,1763933455018,-1964.07027394,0.00040519,5]
[394772319,1763933455028,-830.8232162,0.00040519,2]
[394772320,1763933455039,-203.19153452,0.00040537,8]
[394772321,1763933455050,-500.0,0.00040537,8]
[394772322,1763933455060,-500.0,0.00040537,8]
[394772323,1763933455071,-500.0,0.00040537,8]
[394772324,1763933455081,-587.95,0.00040537,8]
[394772325,1763933455091,-500.0,0.00040537,8]
[394772326,1763933455101,-500.0,0.00040537,8]
[394772327,1763933455111,-500.0,0.00040537,8]
[394772328,1763933455121,-500.0,0.00040537,8]
[394772329,1763933455130,-500.0,0.00040537,8]
[394772330,1763933455141,-239.9640726,0.00040537,8]
[394772331,1763933455151,-500.0,0.00040537,8]
[394772332,1763933455161,-500.0,0.00040537,8]
[394772333,1763933455171,-500.0,0.00040537,8]
[394772334,1763933455181,-500.0,0.00040537,8]
[394772335,1763933455191,-500.0,0.00040537,8]
[394772336,1763933455203,-500.0,0.00040537,8]
[394772337,1763933455213,-500.0,0.00040537,8]
[394772338,1763933455224,-387.37070605,0.00040537,8]
[394772339,1763933455233,-500.0,0.00040537,8]
[394772340,1763933455243,-500.0,0.00040537,8]
[394772341,1763933455253,-1000.0,0.00040544,3]
[394772342,1763933455264,-1000.0,0.00040545,3]
[394772343,1763933455274,-500.0,0.00040546,2]
[394772344,1763933455284,-1000.0,0.00040546,3]
[394772345,1763933455295,-500.0,0.00040547,8]
[394772346,1763933455305,-500.0,0.00040547,8]
[394772347,1763933455315,-500.0,0.00040547,8]
[394772348,1763933455324,-500.0,0.00040547,8]
[394772349,1763933455334,-500.0,0.00040547,8]
[394772350,1763933455344,-500.0,0.00040547,8]
[394772351,1763933455354,-600.63090889,0.00040547,8]
[394772352,1763933455364,-500.0,0.00040547,8]
[394772353,1763933455374,-500.0,0.00040547,8]
[394772354,1763933455384,-500.0,0.00040547,8]
[394772355,1763933455395,-500.0,0.00040547,8]
[394772356,1763933455406,-500.0,0.00040547,8]
[394772357,1763933455415,-500.0,0.00040547,8]
[394772358,1763933455425,-500.0,0.00040547,8]
[394772359,1763933455434,-500.0,0.00040547,8]
[394772360,1763933455444,-500.0,0.00040547,8]
[394772361,1763933455454,-500.0,0.00040547,8]
[394772362,1763933455464,-500.0,0.00040547,8]
[394772363,1763933455474,-500.0,0.00040547,8]
[394772364,1763933455485,-500.0,0.00040547,8]
[394772365,1763933455495,-500.0,0.00040547,8]
[394772366,1763933455506,-500.0,0.00040547,8]
[394772367,1763933455517,-500.0,0.00040547,8]
[394772368,1763933455528,-500.0,0.00040547,8]
[394772369,1763933455539,-500.0,0.00040547,8]
[394772370,1763933455549,-319.01576837,0.00040547,8]
[394772371,1763933455559,-500.0,0.00040547,8]
[394772372,1763933455569,-500.0,0.00040547,8]
[394772373,1763933455579,-500.0,0.00040547,8]
[394772374,1763933455589,-500.0,0.00040547,8]
[394772375,1763933455599,-500.0,0.00040547,8]
[394772376,1763933455610,-500.0,0.00040547,8]
[394772377,1763933455620,-599.96176455,0.00040547,8]
[394772378,1763933455630,-591.4,0.00040547,8]
[394772379,1763933455640,-500.0,0.00040547,8]
[394772380,1763933455650,-500.0,0.00040547,8]
[394772381,1763933455660,-500.0,0.00040547,8]
[394772382,1763933455670,-218.3693587,0.00040547,8]
[394772383,1763933455680,-151.0,0.00040547,120]
[394772384,1763933455691,-500.0,0.00040547,8]
[394772385,1763933455702,-271.79930938,0.00040547,8]
[394772386,1763933455713,-151.0,0.00040547,120]
[394772387,1763933455723,-500.0,0.00040547,8]
[394772388,1763933455733,-500.0,0.00040547,8]
[394772389,1763933455745,-151.0,0.00040547,120]
[394772390,1763933455755,-151.0,0.00040547,120]
[394772391,1763933455766,-500.0,0.00040547,8]
[394772392,1763933455776,-500.0,0.00040547,8]
[394772393,1763933455786,-500.0,0.00040547,8]
[394772394,1763933455796,-500.0,0.00040547,8]
[394772395,1763933455807,-500.0,0.00040547,8]
[394772396,1763933455817,-500.0,0.00040547,8]
[394772397,1763933455827,-193.80583126,0.00040547,2]
[394772398,1763933455837,-500.0,0.00040547,8]
[394772399,1763933455848,-500.0,0.00040547,8]
[394772400,1763933455858,-567.47427355,0.00040547,8]
[394772401,1763933455871,-597.44863288,0.00040547,8]
[394772402,1763933455881,-500.0,0.00040547,8]
[394772403,1763933455891,-500.0,0.00040547,8]
[394772404,1763933455900,-500.0,0.00040547,8]
[394772405,1763933455911,-500.0,0.00040547,8]
[394772406,1763933455921,-500.0,0.00040547,8]
[394772407,1763933455931,-500.0,0.00040547,8]
[394772408,1763933455943,-500.0,0.00040547,8]
[394772409,1763933455953,-500.0,0.00040547,8]
[394772410,1763933455964,-500.0,0.00040547,8]
[394772411,1763933455973,-500.0,0.00040547,8]
[394772412,1763933455983,-529.605554,0.00040547,8]
[394772413,1763933455993,-500.0,0.00040547,8]
[394772414,1763933456003,-500.0,0.00040547,8]
[394772415,1763933456013,-500.0,0.00040547,8]
[394772416,1763933456023,-500.0,0.00040547,8]
[394772417,1763933456073,-500.0,0.00040547,8]
[394772418,1763933456083,-500.0,0.00040547,8]
[394772419,1763933456093,-500.0,0.00040547,8]
[394772420,1763933456102,-500.0,0.00040547,8]
[394772421,1763933456112,-500.0,0.00040547,8]
[394772422,1763933456121,-500.0,0.00040547,8]
[394772423,1763933456131,-299.55397492,0.00040547,8]
[394772424,1763933456141,-500.0,0.00040547,8]
[394772425,1763933456150,-2788.3,0.00040547,8]
[394772426,1763933456160,-500.0,0.00040547,8]
[394772427,1763933456169,-500.0,0.00040547,8]
[394772428,1763933456179,-500.0,0.00040547,8]
[394772429,1763933456188,-287.61484794,0.00040547,8]
[394772430,1763933456197,-242.52879515,0.00040547,8]
[394772431,1763933456207,-727.82,0.00040547,8]
[394772432,1763933456216,-500.0,0.00040547,8]
[394772433,1763933456225,-500.0,0.00040547,8]
[394772434,1763933456235,-500.0,0.00040547,8]
[394772435,1763933456245,-500.0,0.00040547,8]
[394772436,1763933456254,-500.0,0.00040547,8]
[394772437,1763933456265,-500.0,0.00040547,8]
[394772438,1763933456274,-725.13,0.00040547,8]
[394772439,1763933456284,-500.0,0.00040547,8]
[394772440,1763933456293,-1000.0,0.00040547,8]
[394772441,1763933456303,-500.0,0.00040547,8]
[394772442,1763933456314,-500.0,0.00040547,8]
[394772443,1763933456323,-384.33833276,0.00040547,8]
[394772444,1763933456333,-500.0,0.00040547,8]
[394772445,1763933456342,-500.0,0.00040547,8]
[394772446,1763933456352,-500.0,0.00040547,8]
[394772447,1763933456361,-500.0,0.00040547,8]
[394772448,1763933456371,-612.91383717,0.00040547,8]
[394772449,1763933456380,-543.97267534,0.00040547,8]
[394772450,1763933456390,-500.0,0.00040547,8]
[394772451,1763933456399,-500.0,0.00040547,8]
[394772452,1763933456409,-500.0,0.00040547,8]
[394772453,1763933456418,-2515.4,0.00040547,8]
[394772454,1763933456427,-500.0,0.00040547,8]
[394772455,1763933456437,-500.0,0.00040547,8]
[394772456,1763933456447,-274.17764043,0.00040547,8]
[394772457,1763933456457,-500.0,0.00040547,8]
[394772458,1763933456466,-500.0,0.00040547,8]
[394772459,1763933456478,-500.0,0.00040547,8]
[394772460,1763933456488,-500.0,0.00040547,8]
[394772461,1763933456497,-500.0,0.00040547,2]
[394772462,1763933456507,-524.73,0.00040547,8]
[394772463,1763933456517,-500.0,0.00040547,8]
[394772464,1763933456527,-500.0,0.00040547,8]
[394772465,1763933456537,-500.0,0.00040547,8]
[394772466,1763933456546,-551.61,0.00040547,8]
[394772467,1763933456556,-500.0,0.00040547,8]
[394772468,1763933456566,-500.0,0.00040547,8]
[394772469,1763933456576,-941.13,0.00040547,8]
[394772470,1763933456587,-500.0,0.00040547,8]
[394772471,1763933456598,-500.0,0.00040547,8]
[394772472,1763933456609,-761.3,0.00040547,8]
[394772473,1763933456620,-500.0,0.00040547,8]
[394772474,1763933456631,-500.0,0.00040547,8]
[394772475,1763933456642,-500.0,0.00040547,8]
[394772476,1763933456651,-500.0,0.00040547,8]
[394772477,1763933456663,-500.0,0.00040547,8]
[394772478,1763933456675,-500.0,0.00040547,8]
[394772479,1763933456686,-801.51,0.00040547,8]
[394772480,1763933456696,-500.0,0.00040547,8]
[394772481,1763933456706,-500.0,0.00040547,8]
[394772482,1763933456715,-598.71898331,0.00040547,8]
[394772483,1763933456725,-693.68,0.00040547,8]
[394772484,1763933456736,-500.0,0.00040547,8]
[394772485,1763933456746,-567.39345916,0.00040547,8]
[394772486,1763933456755,-500.0,0.00040547,8]
[394772487,1763933456765,-500.0,0.00040547,8]
[394772488,1763933456774,-500.0,0.00040547,8]
[394772489,1763933456785,-500.0,0.00040547,8]
[394772490,1763933456795,-1237.37352836,0.00040564,2]
[394772491,1763933456804,-701.46,0.00040566,2]
[394772492,1763933456814,-171.46,0.00040569,2]
[394772493,1763933456824,-1151.52177,0.0004059,5]
[394772494,1763933456844,-4298.56892222,0.00040595,15]
[394772495,1763933456855,-654.38098081,0.00040606,15]
[394772496,1763933456865,-1444.0,0.00040658,120]
[394772497,1763933456878,-150.7,0.000407,14]
[394772498,1763933456889,-165.85,0.000407,30]
[394772499,1763933456899,-1000.0,0.00040706,3]
[394772500,1763933456909,-600.0,0.00040722,30]
[394772501,1763933456919,-217.83804072,0.00040727,2]
[394772502,1763933456928,-1601.0,0.00040731,2]
[394772503,1763933456938,-822.0,0.00040731,2]
[394772504,1763933456950,-659.0,0.00040731,2]
[394772505,1763933456960,-1256.0,0.00040731,2]
[394772506,1763933456970,-908.0,0.00040731,2]
[394772507,1763933456981,-1192.0,0.00040731,2]
[394772508,1763933456991,-151.0,0.00040732,120]
[394772509,1763933457000,-1151.52177,0.0004078,6]
[394772510,1763933457010,-500.0,0.00040811,8]
[394772511,1763933457020,-500.0,0.00040811,8]
[394772512,1763933457029,-500.0,0.00040811,8]
[394772513,1763933457039,-587.95,0.00040811,8]
[394772514,1763933457049,-500.0,0.00040811,8]
[394772515,1763933457059,-500.0,0.00040811,8]
[394772516,1763933457069,-500.0,0.00040811,8]
[394772517,1763933457079,-500.0,0.00040811,8]
[394772518,1763933457089,-500.0,0.00040811,8]
[394772519,1763933457099,-500.0,0.00040811,8]
[394772520,1763933457108,-500.0,0.00040811,8]
[394772521,1763933457118,-500.0,0.00040811,8]
[394772522,1763933457128,-500.0,0.00040811,8]
[394772523,1763933457138,-500.0,0.00040811,8]
[394772524,1763933457149,-500.0,0.00040811,8]
[394772525,1763933457159,-500.0,0.00040811,8]
[394772526,1763933457171,-500.0,0.00040811,8]
[394772527,1763933457183,-500.0,0.00040811,8]
[394772528,1763933457193,-500.0,0.00040821,8]
[394772529,1763933457203,-500.0,0.00040821,8]
[394772530,1763933457213,-500.0,0.00040821,8]
[394772531,1763933457227,-500.0,0.00040821,8]
[394772532,1763933457236,-500.0,0.00040821,8]
[394772533,1763933457245,-500.0,0.00040821,8]
[394772534,1763933457255,-500.0,0.00040821,8]
[394772535,1763933457265,-500.0,0.00040821,8]
[394772536,1763933457274,-500.0,0.00040821,8]
[394772537,1763933457284,-500.0,0.00040821,8]
[394772538,1763933457293,-500.0,0.00040821,8]
[394772539,1763933457303,-440.98923791,0.00040821,8]
[394772540,1763933457312,-500.0,0.00040821,8]
[394772541,1763933457322,-500.0,0.00040821,8]
[394772542,1763933457331,-500.0,0.00040821,8]
[394772543,1763933457341,-500.0,0.00040821,8]
[394772544,1763933457351,-500.0,0.00040821,8]
[394772545,1763933457360,-500.0,0.00040821,8]
[394772546,1763933457369,-500.0,0.00040821,8]
[394772547,1763933457379,-500.0,0.00040821,8]
[394772548,1763933457388,-500.0,0.00040821,8]
[394772549,1763933457398,-500.0,0.00040821,8]
[394772550,1763933457408,-263.92168133,0.00040821,8]
[394772551,1763933457418,-500.0,0.00040821,8]
[394772552,1763933457432,-500.0,0.00040821,8]
[394772553,1763933457441,-500.0,0.00040821,8]
[394772554,1763933457451,-500.0,0.00040821,8]
[394772555,1763933457462,-500.0,0.00040821,8]
[394772556,1763933457472,-454.78669288,0.00040821,8]
[394772557,1763933457482,-500.0,0.00040821,8]
[394772558,1763933457492,-591.4,0.00040821,8]
[394772559,1763933457501,-500.0,0.00040821,8]
[394772560,1763933457510,-500.0,0.00040821,8]
[394772561,1763933457520,-500.0,0.00040821,8]
[394772562,1763933457529,-500.0,0.00040821,8]
[394772563,1763933457539,-500.0,0.00040821,8]
[394772564,1763933457550,-500.0,0.00040821,8]
[394772565,1763933457560,-500.0,0.00040821,8]
[394772566,1763933457570,-500.0,0.00040821,8]
[394772567,1763933457579,-500.0,0.00040821,8]
[394772568,1763933457588,-151.0,0.00040821,120]
[394772569,1763933457598,-151.0,0.00040821,120]
[394772570,1763933457608,-245.39654598,0.00040821,8]
[394772571,1763933457617,-500.0,0.00040821,8]
[394772572,1763933457627,-500.0,0.00040821,8]
[394772573,1763933457640,-151.0,0.00040821,120]
[394772574,1763933457649,-154.339724,0.00040821,120]
[394772575,1763933457659,-151.0,0.00040821,90]
[394772576,1763933457669,-500.0,0.00040821,8]
[394772577,1763933457679,-151.0,0.00040821,120]
[394772578,1763933457688,-500.0,0.00040821,8]
[394772579,1763933457698,-151.0,0.00040821,120]
[394772580,1763933457708,-151.0,0.00040821,120]
[394772581,1763933457717,-500.0,0.00040821,8]
[394772582,1763933457727,-632.64494355,0.00040821,8]
[394772583,1763933457737,-500.0,0.00040821,8]
[394772584,1763933457747,-500.0,0.00040821,8]
[394772585,1763933457758,-500.0,0.00040821,8]
[394772586,1763933457768,-324.11724164,0.00040821,8]
[394772587,1763933457778,-500.0,0.00040821,8]
[394772588,1763933457788,-500.0,0.00040821,8]
[394772589,1763933457798,-500.0,0.00040821,8]
[394772590,1763933457808,-500.0,0.00040821,8]
[394772591,1763933457817,-500.0,0.00040821,8]
[394772592,1763933457828,-500.0,0.00040821,8]
[394772593,1763933457842,-500.0,0.00040821,8]
[394772594,1763933457852,-500.0,0.00040821,8]
[394772595,1763933457861,-500.0,0.00040821,8]
[394772596,1763933457873,-500.0,0.00040821,8]
[394772597,1763933457884,-500.0,0.00040821,8]
[394772598,1763933457893,-500.0,0.00040821,8]
[394772599,1763933457903,-500.0,0.00040821,8]
[394772600,1763933457913,-555.05270008,0.00040821,8]
[394772601,1763933457923,-500.0,0.00040821,8]
[394772602,1763933457932,-2788.3,0.00040821,8]
[394772603,1763933457941,-500.0,0.00040821,8]
[394772604,1763933457953,-500.0,0.00040821,8]
[394772605,1763933457962,-459.48532761,0.00040821,8]
[394772606,1763933457971,-727.82,0.00040821,8]
[394772607,1763933457981,-500.0,0.00040821,8]
[394772608,1763933457990,-500.0,0.00040821,8]
[394772609,1763933458000,-500.0,0.00040821,8]
[394772610,1763933458009,-500.0,0.00040821,8]
[394772611,1763933458021,-500.0,0.00040821,8]
[394772612,1763933458030,-500.0,0.00040821,8]
[394772613,1763933458039,-725.13,0.00040821,8]
[394772614,1763933458053,-500.0,0.00040821,8]
[394772615,1763933458062,-1000.0,0.00040821,8]
[394772616,1763933458072,-500.0,0.00040821,8]
[394772617,1763933458081,-478.42294751,0.00040821,8]
[394772618,1763933458091,-500.0,0.00040821,8]
[394772619,1763933458100,-500.0,0.00040821,8]
[394772620,1763933458110,-500.0,0.00040821,8]
[394772621,1763933458119,-505.10562695,0.00040821,8]
[394772622,1763933458128,-629.19388709,0.00040821,8]
[394772623,1763933458138,-500.0,0.00040821,8]
[394772624,1763933458148,-261.05732626,0.00040821,8]
[394772625,1763933458157,-2515.4,0.00040821,8]
[394772626,1763933458167,-500.0,0.00040821,8]
[394772627,1763933458176,-500.0,0.00040821,8]
[394772628,1763933458185,-500.0,0.00040821,8]
[394772629,1763933458194,-485.15673483,0.00040821,8]
[394772630,1763933458204,-500.0,0.00040821,8]
[394772631,1763933458213,-188.41822331,0.00040821,8]
[394772632,1763933458223,-500.0,0.00040821,2]
[394772633,1763933458232,-524.73,0.00040821,8]
[394772634,1763933458243,-500.0,0.00040821,8]
[394772635,1763933458253,-500.0,0.00040821,8]
[394772636,1763933458265,-500.0,0.00040821,8]
[394772637,1763933458275,-551.61,0.00040821,8]
[394772638,1763933458284,-500.0,0.00040821,8]
[394772639,1763933458295,-500.0,0.00040821,8]
[394772640,1763933458304,-941.13,0.00040821,8]
[394772641,1763933458313,-500.0,0.00040821,8]
[394772642,1763933458323,-500.0,0.00040821,8]
[394772643,1763933458333,-761.3,0.00040821,8]
[394772644,1763933458342,-500.0,0.00040821,8]
[394772645,1763933458352,-500.0,0.00040821,8]
[394772646,1763933458361,-500.0,0.00040821,8]
[394772647,1763933458371,-500.0,0.00040821,8]
[394772648,1763933458381,-500.0,0.00040821,8]
[394772649,1763933458391,-500.0,0.00040821,8]
[394772650,1763933458401,-801.51,0.00040821,8]
[394772651,1763933458410,-570.07158315,0.00040821,8]
[394772652,1763933458419,-500.0,0.00040821,8]
[394772653,1763933458428,-693.68,0.00040821,8]
[394772654,1763933458438,-500.0,0.00040821,8]
[394772655,1763933458447,-500.0,0.00040821,8]
[394772656,1763933458457,-526.24649729,0.00040821,8]
[394772657,1763933458466,-500.0,0.00040821,8]
[394772658,1763933458476,-500.0,0.00040821,8]
[394772659,1763933458485,-211.53687075,0.00040866,13]
[394772660,1763933458495,-211.53687072,0.00040866,13]
[394772661,1763933458504,-211.53687072,0.00040866,13]
[394772662,1763933458516,-1000.0,0.00040899,3]
[394772663,1763933458525,-1000.0,0.00040899,3]
[394772664,1763933458534,-1000.0,0.00040899,3]
[394772665,1763933458544,-654.38098081,0.000409,15]
[394772666,1763933458553,-162.9711702,0.000409,15]
[394772667,1763933458562,-4298.56892222,0.000409,15]
[394772668,1763933458572,-3049.26362323,0.000409,2]
[394772669,1763933458581,-1576.491737,0.000409,2]
[394772670,1763933458590,-1000.0,0.00040939,3]
[394772671,1763933458600,-165.53528572,0.00040958,2]
[394772672,1763933458609,-150.0,0.00040958,2]
[394772673,1763933458618,-150.0,0.00040958,2]
[394772674,1763933458628,-150.0,0.00040958,2]
[394772675,1763933458646,-150.0,0.00040958,2]
[394772676,1763933458656,-152.01658252,0.00040958,2]
[394772677,1763933458666,-150.0,0.00040958,2]
[394772678,1763933458678,-1000.0,0.00040958,3]
[394772679,1763933458688,-150.0,0.00040958,2]
[394772680,1763933458698,-500.0,0.00040958,2]
[394772681,1763933458707,-2012.0,0.00040958,2]
[394772682,1763933458716,-500.0,0.00040958,2]
[394772683,1763933458726,-44378.3325947,0.0004096,2]
[394772684,1763933458735,-2914.316749,0.00040975,2]
[394772685,1763933458744,-1000.0,0.00040975,3]
[394772686,1763933458754,-2053.5647721,0.00040978,2]
[394772687,1763933458764,-399.85057309,0.0004099,7]
[394772688,1763933458773,-399.85057309,0.0004099,7]
[394772689,1763933458783,-700.0,0.00040996,30]
[394772690,1763933458792,-500.0,0.00040997,8]
[394772691,1763933458802,-500.0,0.00040998,30]
[394772692,1763933458811,-520.0,0.00040998,30]
[394772693,1763933458820,-151.0,0.00040998,30]
[394772694,1763933458830,-500.0,0.00040998,30]
[394772695,1763933458839,-600.0,0.00040998,30]
[394772696,1763933458849,-500.0,0.00040998,30]
[394772697,1763933458860,-539.24,0.00040998,30]
[394772698,1763933458872,-500.0,0.00040998,30]
[394772699,1763933458882,-600.0,0.00040998,30]
[394772700,1763933458892,-151.0,0.00040998,30]
[394772701,1763933458903,-500.0,0.00040998,30]
[394772702,1763933458911,-500.0,0.00040998,30]
[394772703,1763933458921,-600.0,0.00040998,30]
[394772704,1763933458930,-559.19188,0.00040998,30]
[394772705,1763933458941,-151.0,0.00040998,30]
[394772706,1763933458951,-500.0,0.00040998,30]
[394772707,1763933458960,-600.0,0.00040998,30]
[394772708,1763933458969,-500.0,0.00040998,30]
[394772709,1763933458978,-676.49164768,0.00040998,30]
[394772710,1763933458988,-151.0,0.00040998,30]
[394772711,1763933458997,-250.0,0.00040998,30]
[394772712,1763933459005,-500.0,0.00040998,30]
[394772713,1763933459017,-600.0,0.00040998,30]
[394772714,1763933459026,-500.0,0.00040998,30]
[394772715,1763933459035,-1500.0,0.00040998,30]
[394772716,1763933459044,-151.0,0.00040998,30]
[394772717,1763933459054,-250.0,0.00040998,30]
[394772718,1763933459064,-500.0,0.00040998,30]
[394772719,1763933459073,-600.0,0.00040998,30]
[394772720,1763933459083,-500.0,0.00040998,30]
[394772721,1763933459093,-1500.0,0.00040998,30]
[394772722,1763933459103,-151.0,0.00040998,30]
[394772723,1763933459112,-500.0,0.00040998,30]
[394772724,1763933459123,-250.0,0.00040998,30]
[394772725,1763933459132,-600.0,0.00040998,30]
[394772726,1763933459141,-500.0,0.00040998,30]
[394772727,1763933459151,-1500.0,0.00040998,30]
[394772728,1763933459161,-151.0,0.00040998,30]
[394772729,1763933459170,-250.0,0.00040998,30]
[394772730,1763933459180,-600.0,0.00040998,30]
[394772731,1763933459189,-500.0,0.00040998,30]
[394772732,1763933459198,-500.0,0.00040998,30]
[394772733,1763933459208,-1500.0,0.00040998,30]
[394772734,1763933459217,-151.0,0.00040998,30]
[394772735,1763933459227,-600.0,0.00040998,30]
[394772736,1763933459238,-250.0,0.00040998,30]
[394772737,1763933459247,-500.0,0.00040998,30]
[394772738,1763933459256,-500.0,0.00040998,30]
[394772739,1763933459267,-1500.0,0.00040998,30]
[394772740,1763933459277,-250.0,0.00040998,30]
[394772741,1763933459286,-151.68414985,0.00040998,30]
[394772742,1763933459296,-151.0,0.00040998,30]
[394772743,1763933459307,-500.0,0.00040998,30]
[394772744,1763933459317,-250.0,0.00040998,30]
[394772745,1763933459326,-500.0,0.00040998,30]
[394772746,1763933459336,-600.0,0.00040998,30]
[394772747,1763933459346,-500.0,0.00040998,30]
[394772748,1763933459356,-1500.0,0.00040998,30]